[Event "FIDE World Junior U20-ch Girls 2025"]
[Site "Petrovac"]
[Date "2025.02.28"]
[Round "3.16"]
[White "Lu, Miaoyi"]
[Black "Zhou, Shumeng"]
[Result "1-0"]
[Annotator "ChessBase"]
[ECO "C42"]
[WhiteElo "2432"]
[BlackElo "2049"]
[PlyCount "105"]
[EventDate "2025.02.23"]
[EventType "swiss"]
[EventCountry "MNE"]
[SourceTitle "playchess.com"]
[Source "ChessBase"]
[SourceQuality "1"]
[TimeControl "40/5400+30:1800+30"]

1. e4 {[%emt 0:00:01]} e5 {[%emt 0:00:06]} 2. Nf3 {[%emt 0:00:04]} Nf6 {[%emt 0:00:04]} 3. Nxe5 {[%emt 0:00:05]} d6 {[%emt 0:00:05]} 4. Nf3 {[%emt 0:00:05]} Nxe4 {[%emt 0:00:05]} 5. Nc3 {[%emt 0:00:04]} Nxc3 {[%emt 0:00:07]} 6. dxc3 {[%emt 0:00:04]} Be7 {[%emt 0:00:09]} 7. Bf4 {[%emt 0:00:06]} O-O {[%emt 0:00:22]} 8. Qd2 {[%emt 0:00:25]} Re8 {[%emt 0:00:25]} 9. O-O-O {[%emt 0:00:29]} Nd7 {[%emt 0:00:16]} 10. h4 {[%emt 0:02:32]} Nc5 {[%emt 0:12:06]} 11. Ng5 {[%emt 0:02:13]} h6 {[%emt 0:07:22]} 12. Bc4 {[%emt 0:03:35]} Be6 {[%emt 0:16:26]} 13. Nxe6 {[%emt 0:01:51]} Nxe6 {[%emt 0:00:09]} 14. Bxe6 {[%emt 0:01:52]} fxe6 {[%emt 0:00:07]} 15. Be3 {[%emt 0:00:12]} Rf8 {[%emt 0:06:42]} 16. g4 {[%emt 0:20:39]} Qe8 {[%emt 0:17:30]} 17. f4 {[%emt 0:13:15]} Qf7 {[%emt 0:08:04]} 18. Kb1 {[%emt 0:02:13]} e5 {[%emt 0:04:46]} 19. f5 {[%emt 0:02:53]} h5 {[%emt 0:02:05]} 20. Rdf1 {[%emt 0:03:48]} hxg4 {[%emt 0:03:29]} 21. h5 {[%emt 0:00:16]} Qc4 {[%emt 0:02:39]} 22. Qg2 {[%emt 0:02:14]} d5 {[%emt 0:07:29]} 23. h6 {[%emt 0:00:28]} Qe4 {[%emt 0:01:05]} 24. Qxe4 {[%emt 0:03:31]} dxe4 {[%emt 0:00:02]} 25. hxg7 {[%emt 0:00:06]} Kxg7 {[%emt 0:00:20]} 26. Bh6+ {[%emt 0:00:05]} Kf6 {[%emt 0:03:10]} 27. Bxf8 {[%emt 0:00:03]} Rxf8 {[%emt 0:02:36]} 28. Rh6+ {[%emt 0:03:54]} Kg5 {[%emt 0:00:05]} 29. Rg6+ {[%emt 0:00:21]} Kh5 {[%emt 0:01:54]} 30. Rg7 {[%emt 0:05:20]} Bh4 {[%emt 0:00:16]} 31. Rh1 {[%emt 0:19:05]} Rxf5 {[%emt 0:02:15]} 32. Rh7+ {[%emt 0:00:02]} Kg5 {[%emt 0:00:07]} 33. R7xh4 {[%emt 0:00:04]} Rf2 {[%emt 0:03:27]} 34. Kc1 {[%emt 0:01:39]} e3 {[%emt 0:00:42]} 35. Rh7 {[%emt 0:03:18]} g3 {[%emt 0:00:55]} 36. Rg1 {[%emt 0:02:19]} Kf4 {[%emt 0:00:25]} 37. Rg7 {[%emt 0:02:15]} e2 {[%emt 0:00:10]} 38. Kd2 {[%emt 0:00:02]} Rf1 {[%emt 0:00:30]} 39. Rf7+ {[%emt 0:00:15]} Ke4 {[%emt 0:00:10]} 40. Rfxf1 {[%emt 0:01:04]} exf1=Q {[%emt 0:00:03]} 41. Rxf1 {[%emt 0:30:09]} g2 {[%emt 0:30:01]} 42. Ra1 {[%emt 0:00:00]} Kf3 {[%emt 0:00:00]} 43. c4 {[%emt 0:00:00]} Kf2 {[%emt 0:00:00]} 44. Kd3 {[%emt 0:00:00]} g1=Q {[%emt 0:00:00]} 45. Rxg1 {[%emt 0:00:00]} Kxg1 {[%emt 0:00:00]} 46. Ke4 {[%emt 0:00:00]} Kf2 {[%emt 0:00:00]} 47. Kxe5 {[%emt 0:00:00]} Ke3 {[%emt 0:00:00]} 48. c5 {[%emt 0:00:00]} a5 {[%emt 0:00:00]} 49. Ke6 {[%emt 0:01:05]} Kd4 {[%emt 0:00:00]} 50. Kd7 {[%emt 0:00:05]} Kxc5 {[%emt 0:00:00]} 51. Kxc7 {[%emt 0:00:04]} b5 {[%emt 0:00:00]} 52. Kb7 {[%emt 0:00:18]} a4 {[%emt 0:00:00]} 53. Ka6 {[%emt 0:00:11]} 1-0

[Event "FIDE World Junior U20-ch Girls 2025"]
[Site "Petrovac"]
[Date "2025.02.28"]
[Round "3.17"]
[White "Huseynova, Lala"]
[Black "Nurgaliyeva, Zarina"]
[Result "0-1"]
[Annotator "ChessBase"]
[ECO "B18"]
[WhiteElo "2032"]
[BlackElo "2265"]
[PlyCount "76"]
[EventDate "2025.02.23"]
[EventType "swiss"]
[EventCountry "MNE"]
[SourceTitle "playchess.com"]
[Source "ChessBase"]
[SourceQuality "1"]
[TimeControl "40/5400+30:1800+30"]

1. e4 {[%emt 0:00:06]} c6 {[%emt 0:00:14]} 2. d4 {[%emt 0:00:13]} d5 {[%emt 0:00:09]} 3. Nc3 {[%emt 0:00:36]} dxe4 {[%emt 0:00:22]} 4. Nxe4 {[%emt 0:00:06]} Bf5 {[%emt 0:00:06]} 5. Ng3 {[%emt 0:00:08]} Bg6 {[%emt 0:00:17]} 6. Nf3 {[%emt 0:00:42]} e6 {[%emt 0:03:16]} 7. h4 {[%emt 0:00:43]} h6 {[%emt 0:00:27]} 8. Ne5 {[%emt 0:07:07]} Bh7 {[%emt 0:01:30]} 9. Bd3 {[%emt 0:09:46]} Bxd3 {[%emt 0:00:33]} 10. Qxd3 {[%emt 0:00:17]} Nd7 {[%emt 0:01:08]} 11. Bf4 {[%emt 0:07:52]} Nxe5 {[%emt 0:19:01]} 12. Bxe5 {[%emt 0:01:07]} Nf6 {[%emt 0:02:42]} 13. O-O-O {[%emt 0:06:13]} Qa5 {[%emt 0:04:21]} 14. Kb1 {[%emt 0:01:56]} O-O-O {[%emt 0:01:51]} 15. Ne2 {[%emt 0:10:31]} Be7 {[%emt 0:03:49]} 16. c4 {[%emt 0:02:43]} Rhg8 {[%emt 0:04:11]} 17. Qf3 {[%emt 0:03:36]} Rd7 {[%emt 0:13:30]} 18. g4 {[%emt 0:01:51]} Bd8 {[%emt 0:04:25]} 19. Rd3 {[%emt 0:06:52]} Bc7 {[%emt 0:20:43]} 20. Ra3 {[%emt 0:20:29]} Qb4 {[%emt 0:03:00]} 21. g5 {[%emt 0:06:32]} Bxe5 {[%emt 0:08:50]} 22. dxe5 {[%emt 0:00:18]} Rd2 {[%emt 0:00:18]} 23. Qc3 {[%emt 0:05:26]} Qxc3 {[%emt 0:00:19]} 24. Nxc3 {[%emt 0:00:02]} Ng4 {[%emt 0:00:40]} 25. Ne4 {[%emt 0:01:52]} Rd4 {[%emt 0:00:25]} 26. Nd6+ {[%emt 0:01:40]} Kb8 {[%emt 0:00:12]} 27. Nxf7 {[%emt 0:01:27]} Nxf2 {[%emt 0:00:36]} 28. Rf1 {[%emt 0:01:38]} Ne4 {[%emt 0:00:37]} 29. Kc2 {[%emt 0:02:20]} Rxc4+ {[%emt 0:01:34]} 30. Kd3 {[%emt 0:00:15]} Rb4 {[%emt 0:00:35]} 31. Rf4 {[%emt 0:01:05]} Nc5+ {[%emt 0:00:42]} 32. Ke3 {[%emt 0:00:02]} Rxb2 {[%emt 0:00:27]} 33. gxh6 {[%emt 0:00:43]} gxh6 {[%emt 0:00:08]} 34. Nxh6 {[%emt 0:00:03]} Rgg2 {[%emt 0:03:01]} 35. Kd4 {[%emt 0:01:04]} Rb4+ {[%emt 0:00:41]} 36. Ke3 {[%emt 0:00:31]} Rg3+ {[%emt 0:00:08]} 37. Rf3 {[%emt 0:00:02]} Rxf3+ {[%emt 0:00:06]} 38. Kxf3 {[%emt 0:00:02]} Rxh4 {[%emt 0:00:05]} 0-1

[Event "FIDE World Junior U20-ch Girls 2025"]
[Site "Petrovac"]
[Date "2025.02.28"]
[Round "3.18"]
[White "Shohradova, Lala"]
[Black "Orian, Noga"]
[Result "1/2-1/2"]
[Annotator "ChessBase"]
[ECO "E21"]
[WhiteElo "2025"]
[BlackElo "2210"]
[PlyCount "86"]
[EventDate "2025.02.23"]
[EventType "swiss"]
[EventCountry "MNE"]
[SourceTitle "playchess.com"]
[Source "ChessBase"]
[SourceQuality "1"]
[TimeControl "40/5400+30:1800+30"]

1. d4 {[%emt 0:00:02]} Nf6 {[%emt 0:00:54]} 2. c4 {[%emt 0:00:03]} e6 {[%emt 0:00:16]} 3. Nc3 {[%emt 0:00:05]} Bb4 {[%emt 0:00:14]} 4. Nf3 {[%emt 0:01:07]} b6 {[%emt 0:00:21]} 5. g3 {[%emt 0:01:11]} Bxc3+ {[%emt 0:00:38]} 6. bxc3 {[%emt 0:00:02]} Bb7 {[%emt 0:00:07]} 7. Ba3 {[%emt 0:07:05]} d6 {[%emt 0:01:59]} 8. c5 {[%emt 0:01:08]} dxc5 {[%emt 0:03:25]} 9. dxc5 {[%emt 0:00:33]} Qxd1+ {[%emt 0:00:21]} 10. Rxd1 {[%emt 0:00:02]} Nbd7 {[%emt 0:00:16]} 11. Bg2 {[%emt 0:02:08]} Nxc5 {[%emt 0:01:02]} 12. Bxc5 {[%emt 0:09:35]} bxc5 {[%emt 0:00:02]} 13. O-O {[%emt 0:00:06]} Rb8 {[%emt 0:12:05]} 14. Ne5 {[%emt 0:17:09]} Bxg2 {[%emt 0:02:16]} 15. Kxg2 {[%emt 0:00:02]} Rb6 {[%emt 0:01:08]} 16. a4 {[%emt 0:02:54]} Ke7 {[%emt 0:02:03]} 17. a5 {[%emt 0:01:23]} Rd6 {[%emt 0:13:09]} 18. Rb1 {[%emt 0:02:59]} Nd7 {[%emt 0:00:58]} 19. Nc4 {[%emt 0:00:31]} Rc6 {[%emt 0:00:02]} 20. Rb7 {[%emt 0:03:42]} Ra8 {[%emt 0:00:05]} 21. e4 {[%emt 0:09:12]} f6 {[%emt 0:06:58]} 22. f4 {[%emt 0:00:43]} Kd8 {[%emt 0:16:29]} 23. Rd1 {[%emt 0:02:55]} Ke8 {[%emt 0:06:31]} 24. Kf2 {[%emt 0:11:24]} Nf8 {[%emt 0:02:36]} 25. e5 {[%emt 0:05:41]} Nd7 {[%emt 0:06:58]} 26. Ke3 {[%emt 0:04:05]} Ke7 {[%emt 0:03:31]} 27. exf6+ {[%emt 0:07:46]} gxf6 {[%emt 0:00:23]} 28. Ke4 {[%emt 0:00:27]} a6 {[%emt 0:03:01]} 29. g4 {[%emt 0:03:12]} Rg8 {[%emt 0:02:24]} 30. g5 {[%emt 0:02:00]} Rd8 {[%emt 0:02:19]} 31. Rb2 {[%emt 0:02:15]} h6 {[%emt 0:10:54]} 32. gxh6 {[%emt 0:02:17]} f5+ {[%emt 0:01:03]} 33. Kf3 {[%emt 0:00:29]} e5 {[%emt 0:00:31]} 34. fxe5 {[%emt 0:02:34]} Rxh6 {[%emt 0:00:38]} 35. Rg1 {[%emt 0:00:33]} Rh3+ {[%emt 0:00:54]} 36. Rg3 {[%emt 0:00:03]} Rxg3+ {[%emt 0:00:06]} 37. hxg3 {[%emt 0:00:01]} Ke6 {[%emt 0:00:25]} 38. Kf4 {[%emt 0:00:46]} Rg8 {[%emt 0:00:28]} 39. Ne3 {[%emt 0:00:01]} Nxe5 {[%emt 0:00:25]} 40. Rb7 {[%emt 0:01:00]} Ng6+ {[%emt 0:01:53]} 41. Kf3 {[%emt 0:30:09]} Ne5+ {[%emt 0:30:34]} 42. Kf4 {[%emt 0:00:12]} Ng6+ {[%emt 0:00:00]} 43. Kf3 {[%emt 0:00:00]} Ne5+ {[%emt 0:00:00]} 1/2-1/2

[Event "FIDE World Junior U20-ch Girls 2025"]
[Site "Petrovac"]
[Date "2025.02.28"]
[Round "3.19"]
[White "Blokhin, Sofia"]
[Black "Khuslen, Erdenebayar"]
[Result "0-1"]
[Annotator "ChessBase"]
[ECO "B46"]
[WhiteElo "2020"]
[BlackElo "2201"]
[PlyCount "94"]
[EventDate "2025.02.23"]
[EventType "swiss"]
[EventCountry "MNE"]
[SourceTitle "playchess.com"]
[Source "ChessBase"]
[SourceQuality "1"]
[TimeControl "40/5400+30:1800+30"]

1. e4 {[%emt 0:00:01]} c5 {[%emt 0:00:08]} 2. Nf3 {[%emt 0:00:07]} e6 {[%emt 0:04:26]} 3. d4 {[%emt 0:00:07]} cxd4 {[%emt 0:00:06]} 4. Nxd4 {[%emt 0:00:06]} Nc6 {[%emt 0:00:09]} 5. Nc3 {[%emt 0:00:15]} a6 {[%emt 0:00:27]} 6. Be3 {[%emt 0:00:20]} Nf6 {[%emt 0:02:51]} 7. a3 {[%emt 0:00:16]} Be7 {[%emt 0:02:28]} 8. f4 {[%emt 0:06:32]} d6 {[%emt 0:00:26]} 9. Nb3 {[%emt 0:09:22]} Qc7 {[%emt 0:07:34]} 10. Qf3 {[%emt 0:06:05]} h5 {[%emt 0:02:30]} 11. O-O-O {[%emt 0:18:59]} Rb8 {[%emt 0:09:31]} 12. g3 {[%emt 0:09:49]} b5 {[%emt 0:02:59]} 13. h3 {[%emt 0:03:21]} b4 {[%emt 0:06:09]} 14. axb4 {[%emt 0:02:08]} Nxb4 {[%emt 0:00:12]} 15. Rh2 {[%emt 0:03:40]} Bd7 {[%emt 0:04:56]} 16. Rf2 {[%emt 0:03:41]} Qb7 {[%emt 0:16:38]} 17. Bd3 {[%emt 0:08:23]} a5 {[%emt 0:15:38]} 18. Nxa5 {[%emt 0:08:29]} Na2+ {[%emt 0:04:52]} 19. Kd2 {[%emt 0:03:36]} Qxb2 {[%emt 0:05:29]} 20. Bd4 {[%emt 0:01:18]} Nxc3 {[%emt 0:01:05]} 21. Bxc3 {[%emt 0:00:07]} Qb6 {[%emt 0:01:11]} 22. Nc4 {[%emt 0:01:54]} Qc5 {[%emt 0:04:11]} 23. Bxf6 {[%emt 0:02:45]} gxf6 {[%emt 0:03:25]} 24. Qe3 {[%emt 0:01:58]} Qc7 {[%emt 0:01:53]} 25. Re2 {[%emt 0:01:56]} Rb4 {[%emt 0:00:42]} 26. Na3 {[%emt 0:05:05]} Qa5 {[%emt 0:00:23]} 27. c3 {[%emt 0:00:14]} Rb2+ {[%emt 0:02:18]} 28. Nc2 {[%emt 0:00:06]} O-O {[%emt 0:01:13]} 29. Ke1 {[%emt 0:01:55]} Qxc3+ {[%emt 0:00:08]} 30. Kf1 {[%emt 0:00:17]} Ba4 {[%emt 0:00:34]} 31. e5 {[%emt 0:00:54]} f5 {[%emt 0:00:10]} 32. Rdd2 {[%emt 0:00:42]} dxe5 {[%emt 0:00:29]} 33. fxe5 {[%emt 0:01:34]} Rd8 {[%emt 0:00:54]} 34. Ne1 {[%emt 0:00:00]} Rxd2 {[%emt 0:00:17]} 35. Rxd2 {[%emt 0:00:11]} Rd5 {[%emt 0:00:41]} 36. Re2 {[%emt 0:00:21]} Bd1 {[%emt 0:00:22]} 37. Rd2 {[%emt 0:01:33]} Rxe5 {[%emt 0:00:05]} 38. Qf4 {[%emt 0:00:34]} Bb3 {[%emt 0:00:35]} 39. Nf3 {[%emt 0:00:30]} Rd5 {[%emt 0:00:35]} 40. Ke2 {[%emt 0:00:41]} Rxd3 {[%emt 0:01:11]} 41. Rxd3 {[%emt 0:30:24]} Bc4 {[%emt 0:30:04]} 42. Qb8+ {[%emt 0:00:15]} Kh7 {[%emt 0:00:40]} 43. Ne1 {[%emt 0:00:00]} Bb4 {[%emt 0:00:00]} 44. Kf3 {[%emt 0:00:00]} Bxd3 {[%emt 0:00:00]} 45. Qa7 {[%emt 0:00:00]} Be4+ {[%emt 0:00:00]} 46. Kf4 {[%emt 0:00:00]} Bd6+ {[%emt 0:00:00]} 47. Kg5 {[%emt 0:00:00]} Qxg3+ {[%emt 0:00:00]} 0-1

[Event "FIDE World Junior U20-ch Girls 2025"]
[Site "Petrovac"]
[Date "2025.02.28"]
[Round "3.20"]
[White "Zelbova, Lada"]
[Black "Pipiras, Filipa Fortuna"]
[Result "0-1"]
[Annotator "ChessBase"]
[ECO "D37"]
[WhiteElo "1994"]
[BlackElo "2200"]
[PlyCount "76"]
[EventDate "2025.02.23"]
[EventType "swiss"]
[EventCountry "MNE"]
[SourceTitle "playchess.com"]
[Source "ChessBase"]
[SourceQuality "1"]
[TimeControl "40/5400+30:1800+30"]

1. d4 {[%emt 0:00:03]} Nf6 {[%emt 0:00:15]} 2. c4 {[%emt 0:00:16]} e6 {[%emt 0:00:10]} 3. Nf3 {[%emt 0:00:08]} d5 {[%emt 0:00:26]} 4. Nc3 {[%emt 0:00:08]} h6 {[%emt 0:00:35]} 5. cxd5 {[%emt 0:02:31]} exd5 {[%emt 0:00:12]} 6. Bf4 {[%emt 0:03:16]} Bd6 {[%emt 0:00:26]} 7. Bxd6 {[%emt 0:00:57]} Qxd6 {[%emt 0:00:09]} 8. Qc2 {[%emt 0:00:40]} O-O {[%emt 0:04:48]} 9. e3 {[%emt 0:00:23]} a6 {[%emt 0:01:57]} 10. Bd3 {[%emt 0:01:03]} Nc6 {[%emt 0:15:08]} 11. a3 {[%emt 0:02:03]} Bg4 {[%emt 0:00:18]} 12. Nh4 {[%emt 0:04:19]} Ne7 {[%emt 0:13:13]} 13. h3 {[%emt 0:00:28]} Be6 {[%emt 0:05:15]} 14. O-O {[%emt 0:03:29]} b6 {[%emt 0:01:51]} 15. b4 {[%emt 0:01:01]} c5 {[%emt 0:01:04]} 16. bxc5 {[%emt 0:10:56]} bxc5 {[%emt 0:00:07]} 17. dxc5 {[%emt 0:00:38]} Qxc5 {[%emt 0:00:09]} 18. Ne4 {[%emt 0:05:40]} Nxe4 {[%emt 0:01:28]} 19. Bxe4 {[%emt 0:02:17]} Qa5 {[%emt 0:04:31]} 20. Bh7+ {[%emt 0:03:00]} Kh8 {[%emt 0:00:06]} 21. Bd3 {[%emt 0:00:13]} Rfc8 {[%emt 0:03:12]} 22. Qe2 {[%emt 0:01:19]} Qa4 {[%emt 0:03:04]} 23. Nf3 {[%emt 0:01:05]} Nf5 {[%emt 0:18:37]} 24. Bxf5 {[%emt 0:02:49]} Bxf5 {[%emt 0:01:31]} 25. Nd4 {[%emt 0:00:55]} Bg6 {[%emt 0:02:25]} 26. Qd2 {[%emt 0:04:02]} Rc4 {[%emt 0:02:49]} 27. Qb2 {[%emt 0:08:44]} Qe8 {[%emt 0:07:11]} 28. Qb7 {[%emt 0:03:00]} Qd8 {[%emt 0:02:35]} 29. Rfd1 {[%emt 0:10:57]} Rc7 {[%emt 0:03:15]} 30. Qb6 {[%emt 0:03:45]} Qc8 {[%emt 0:01:12]} 31. Qd6 {[%emt 0:02:44]} Qb7 {[%emt 0:02:37]} 32. Rac1 {[%emt 0:02:07]} Rc4 {[%emt 0:01:45]} 33. Nc6 {[%emt 0:08:30]} Qb2 {[%emt 0:01:33]} 34. Rxc4 {[%emt 0:05:23]} dxc4 {[%emt 0:00:04]} 35. Ne7 {[%emt 0:01:04]} c3 {[%emt 0:00:50]} 36. Qc7 {[%emt 0:05:23]} c2 {[%emt 0:01:00]} 37. Rd8+ {[%emt 0:00:53]} Kh7 {[%emt 0:00:06]} 38. Rxa8 {[%emt 0:01:36]} c1=Q+ {[%emt 0:00:04]} 0-1

[Event "FIDE World Junior U20-ch Girls 2025"]
[Site "Petrovac"]
[Date "2025.02.28"]
[Round "3.21"]
[White "Beber, Anja"]
[Black "Tashkinova, Sofiia"]
[Result "0-1"]
[Annotator "ChessBase"]
[ECO "B30"]
[WhiteElo "1988"]
[BlackElo "2197"]
[PlyCount "106"]
[EventDate "2025.02.23"]
[EventType "swiss"]
[EventCountry "MNE"]
[SourceTitle "playchess.com"]
[Source "ChessBase"]
[SourceQuality "1"]
[TimeControl "40/5400+30:1800+30"]

1. e4 {[%emt 0:00:06]} c5 {[%emt 0:01:00]} 2. Nf3 {[%emt 0:00:50]} Nc6 {[%emt 0:00:08]} 3. d3 {[%emt 0:00:15]} e5 {[%emt 0:03:56]} 4. g3 {[%emt 0:01:21]} Nge7 {[%emt 0:04:14]} 5. Bg2 {[%emt 0:00:25]} d6 {[%emt 0:03:10]} 6. h3 {[%emt 0:02:46]} g6 {[%emt 0:01:51]} 7. O-O {[%emt 0:00:22]} Bg7 {[%emt 0:00:38]} 8. c3 {[%emt 0:00:23]} O-O {[%emt 0:03:26]} 9. Nbd2 {[%emt 0:00:32]} h6 {[%emt 0:01:40]} 10. Ne1 {[%emt 0:14:04]} Be6 {[%emt 0:02:41]} 11. Nc2 {[%emt 0:03:05]} d5 {[%emt 0:04:31]} 12. Qe2 {[%emt 0:02:32]} Qd7 {[%emt 0:01:52]} 13. Kh2 {[%emt 0:00:18]} f5 {[%emt 0:01:52]} 14. f3 {[%emt 0:09:58]} Rad8 {[%emt 0:07:53]} 15. Re1 {[%emt 0:15:43]} Rf7 {[%emt 0:07:14]} 16. Nf1 {[%emt 0:00:58]} fxe4 {[%emt 0:02:29]} 17. dxe4 {[%emt 0:17:02]} d4 {[%emt 0:06:48]} 18. Rd1 {[%emt 0:00:11]} Qc7 {[%emt 0:11:53]} 19. Na3 {[%emt 0:12:28]} a6 {[%emt 0:04:00]} 20. c4 {[%emt 0:03:37]} Nb4 {[%emt 0:02:33]} 21. b3 {[%emt 0:03:02]} Nec6 {[%emt 0:03:21]} 22. Bb2 {[%emt 0:07:03]} Kh7 {[%emt 0:08:17]} 23. Qf2 {[%emt 0:00:24]} Na5 {[%emt 0:04:13]} 24. Nc2 {[%emt 0:00:25]} Nbc6 {[%emt 0:01:25]} 25. Ba3 {[%emt 0:01:37]} Bf8 {[%emt 0:00:31]} 26. Nd2 {[%emt 0:01:06]} b5 {[%emt 0:01:10]} 27. Bf1 {[%emt 0:00:17]} Qb6 {[%emt 0:02:05]} 28. Bd3 {[%emt 0:00:16]} Be7 {[%emt 0:01:22]} 29. Qe2 {[%emt 0:00:20]} bxc4 {[%emt 0:02:02]} 30. bxc4 {[%emt 0:00:56]} Nb4 {[%emt 0:02:21]} 31. Bxb4 {[%emt 0:00:30]} cxb4 {[%emt 0:00:06]} 32. Rab1 {[%emt 0:00:25]} Nb7 {[%emt 0:00:27]} 33. a3 {[%emt 0:01:38]} a5 {[%emt 0:00:19]} 34. axb4 {[%emt 0:00:19]} axb4 {[%emt 0:00:09]} 35. Nb3 {[%emt 0:00:20]} Rdf8 {[%emt 0:01:32]} 36. Ne1 {[%emt 0:00:27]} Qc6 {[%emt 0:00:53]} 37. Rb2 {[%emt 0:00:19]} Qc8 {[%emt 0:01:17]} 38. Qg2 {[%emt 0:00:56]} Bg5 {[%emt 0:01:35]} 39. h4 {[%emt 0:00:56]} Be3 {[%emt 0:00:59]} 40. Nd2 {[%emt 0:00:22]} Nc5 {[%emt 0:01:39]} 41. Rxb4 {[%emt 0:31:47]} Bg4 {[%emt 0:03:44]} 42. Bb1 {[%emt 0:00:00]} Bxd2 {[%emt 0:04:43]} 43. Rxd2 {[%emt 0:00:00]} Bxf3 {[%emt 0:00:11]} 44. Nxf3 {[%emt 0:00:00]} Rxf3 {[%emt 0:00:08]} 45. Rbb2 {[%emt 0:00:00]} Nd7 {[%emt 0:10:42]} 46. Bd3 {[%emt 0:01:25]} Nf6 {[%emt 0:04:29]} 47. Kg1 {[%emt 0:01:08]} Ng4 {[%emt 0:00:37]} 48. Qh3 {[%emt 0:00:34]} h5 {[%emt 0:02:00]} 49. Rb1 {[%emt 0:00:41]} Qc5 {[%emt 0:02:01]} 50. Qg2 {[%emt 0:00:49]} Kh8 {[%emt 0:01:58]} 51. Rbb2 {[%emt 0:00:30]} Qa3 {[%emt 0:01:36]} 52. Qe2 {[%emt 0:00:30]} Rxg3+ {[%emt 0:00:27]} 53. Kh1 {[%emt 0:00:14]} Rf2 {[%emt 0:02:57]} 0-1

[Event "FIDE World Junior U20-ch Girls 2025"]
[Site "Petrovac"]
[Date "2025.02.28"]
[Round "3.22"]
[White "Karacsonyi, Kata"]
[Black "Lindstad, Livia"]
[Result "1/2-1/2"]
[Annotator "ChessBase"]
[ECO "B10"]
[WhiteElo "2191"]
[BlackElo "2017"]
[PlyCount "103"]
[EventDate "2025.02.23"]
[EventType "swiss"]
[EventCountry "MNE"]
[SourceTitle "playchess.com"]
[Source "ChessBase"]
[SourceQuality "1"]
[TimeControl "40/5400+30:1800+30"]

1. e4 {[%emt 0:00:03]} c6 {[%emt 0:00:27]} 2. Nf3 {[%emt 0:00:17]} d5 {[%emt 0:00:18]} 3. Nc3 {[%emt 0:00:06]} dxe4 {[%emt 0:00:17]} 4. Nxe4 {[%emt 0:00:07]} Nf6 {[%emt 0:00:20]} 5. Qe2 {[%emt 0:00:40]} Na6 {[%emt 0:00:29]} 6. d4 {[%emt 0:07:34]} Qd5 {[%emt 0:01:24]} 7. Nxf6+ {[%emt 0:03:19]} gxf6 {[%emt 0:00:13]} 8. c3 {[%emt 0:05:20]} Bg4 {[%emt 0:02:13]} 9. h3 {[%emt 0:02:40]} Bxf3 {[%emt 0:02:31]} 10. Qxf3 {[%emt 0:00:37]} Qxf3 {[%emt 0:02:28]} 11. gxf3 {[%emt 0:00:06]} Nc7 {[%emt 0:01:16]} 12. Bd2 {[%emt 0:08:08]} O-O-O {[%emt 0:01:24]} 13. a4 {[%emt 0:09:54]} e6 {[%emt 0:05:15]} 14. b4 {[%emt 0:04:32]} a6 {[%emt 0:04:17]} 15. Rg1 {[%emt 0:12:25]} Re8 {[%emt 0:16:26]} 16. Bc4 {[%emt 0:04:01]} f5 {[%emt 0:11:16]} 17. Bf4 {[%emt 0:08:36]} f6 {[%emt 0:02:32]} 18. O-O-O {[%emt 0:01:05]} Nd5 {[%emt 0:04:45]} 19. Bxd5 {[%emt 0:01:07]} cxd5 {[%emt 0:00:23]} 20. Rde1 {[%emt 0:02:34]} Kd7 {[%emt 0:01:36]} 21. Kc2 {[%emt 0:01:35]} Bd6 {[%emt 0:01:54]} 22. Bxd6 {[%emt 0:08:14]} Kxd6 {[%emt 0:00:09]} 23. Rg7 {[%emt 0:00:05]} Re7 {[%emt 0:00:27]} 24. Reg1 {[%emt 0:00:07]} Rhe8 {[%emt 0:00:38]} 25. f4 {[%emt 0:00:33]} Rxg7 {[%emt 0:02:39]} 26. Rxg7 {[%emt 0:00:08]} Re7 {[%emt 0:00:16]} 27. Rg8 {[%emt 0:00:30]} Rc7 {[%emt 0:06:41]} 28. Kd3 {[%emt 0:00:51]} Rf7 {[%emt 0:09:43]} 29. c4 {[%emt 0:04:46]} dxc4+ {[%emt 0:02:54]} 30. Kxc4 {[%emt 0:00:06]} Rc7+ {[%emt 0:00:21]} 31. Kd3 {[%emt 0:01:34]} Rd7 {[%emt 0:03:09]} 32. Rf8 {[%emt 0:04:15]} Ke7 {[%emt 0:00:22]} 33. Rh8 {[%emt 0:00:06]} Kd6 {[%emt 0:00:23]} 34. Rf8 {[%emt 0:01:47]} Ke7 {[%emt 0:01:10]} 35. Rh8 {[%emt 0:00:08]} Kd6 {[%emt 0:00:18]} 36. b5 {[%emt 0:00:49]} axb5 {[%emt 0:01:00]} 37. axb5 {[%emt 0:00:06]} e5 {[%emt 0:04:18]} 38. fxe5+ {[%emt 0:02:43]} fxe5 {[%emt 0:00:13]} 39. Rf8 {[%emt 0:00:27]} Kc7 {[%emt 0:06:18]} 40. Rxf5 {[%emt 0:00:34]} Rxd4+ {[%emt 0:00:09]} 41. Ke3 {[%emt 0:08:39]} Rh4 {[%emt 0:03:37]} 42. Rxe5 {[%emt 0:01:18]} Rxh3+ {[%emt 0:00:24]} 43. Ke4 {[%emt 0:00:36]} h5 {[%emt 0:01:31]} 44. f4 {[%emt 0:06:56]} Rh1 {[%emt 0:10:24]} 45. Kf3 {[%emt 0:02:28]} Rf1+ {[%emt 0:01:39]} 46. Kg3 {[%emt 0:00:22]} h4+ {[%emt 0:01:13]} 47. Kg4 {[%emt 0:00:24]} h3 {[%emt 0:00:57]} 48. Rh5 {[%emt 0:00:17]} Kb6 {[%emt 0:02:09]} 49. Rxh3 {[%emt 0:05:24]} Kxb5 {[%emt 0:01:09]} 50. Rb3+ {[%emt 0:00:07]} Kc6 {[%emt 0:00:19]} 51. f5 {[%emt 0:01:11]} b5 {[%emt 0:02:02]} 52. Kg5 {[%emt 0:01:27]} 1/2-1/2